Workbook

Sheet PAGO
B5: DATOS ALUMNO/A
B7: Documento
B8: de identidad: | K8: Número:
B10: Apellido1: | K10: Apellido 2: | T10: Nombre:
B13: Télefono fijo: | H13: Télefono móvil: | O13: e-mail
B16: CURSO EN EL QUE SE MATRICULA | P16: AÑO ACADÉMICO
B17: NIVEL | K17: TÍTULO:
B18: C.F. GRADO MEDIO | K18: Farmacia y Parafarmacia
B20: MODULOS EN LOS QUE SE MATRICULA:
A22: Curso | C22: Módulo | O22: Horas | P22: Matricular | R22: Precio | T22: Convalidar | W22: Precio Conval.
B24: 1º | C24: 0099 Disposición y venta de productos | O24: 102 | R24: =O24*2.4 -> 244.8 | W24: 10
B25: 1º | C25: 0100 Oficina de farmacia | O25: 136 | R25: =O25*2.4 -> 326.4 | W25: 10
B26: 1º | C26: 0102 Dispensación de productos parafarmacéut. | O26: 238 | R26: 571.2 | W26: 10
B27: 1º | C27: 0103 Operaciones básicas de laboratorio | O27: 170 | R27: 408 | W27: 10
B28: 1º | C28: 1709 Itinerario personal para la empleabilidad I | O28: 102 | R28: 244.8 | W28: 10
B29: 1º | C29: 0061 Anatomofisiología y patología básicas | O29: 136 | R29: 326.4 | W29: 10
B30: 1º | C30: 0156 Ingés profesional | O30: 68 | R30: =O30*2.4 -> 163.2 | W30: 10
B31: 1º | C31: Módulo optativo I | O31: 34 | R31: =O31*2.4 -> 81.6 | W31: 10
B32: 2º | C32: 0101 Dispensación de productos farmacéuticos | O32: 297 | R32: =O32*2.4 -> 712.8 | W32: 10
B33: 2º | C33: 0104 Formulación magistral | O33: 198 | R33: 475.2 | W33: 10
B34: 2º | C34: 0105 Promoción de la salud | O34: 198 | R34: 475.2 | W34: 10
B35: 2º | C35: 1710 Itinerario personal para la empleabilidad II | O35: 68 | R35: 163.2 | W35: 10
B36: 2º | C36: 0020 Primeros auxilios | O36: 66 | R36: 158.4 | W36: 10
B37: 2º | C37: 1664 Digitalización aplicada a los sectores prod. | O37: 34 | R37: =O37*2.4 -> 81.6 | W37: 10
B38: 2º | C38: 1713 Proyecto intermodular | O38: 65 | R38: =O38*2.4 -> 156 | W38: 10
B39: 2º | C39: 1708 Sostenibilidad aplicada al sistema product. | O39: 34 | R39: =O39*2.4 -> 81.6 | W39: 10
B40: 2º | C40: Módulo optativo II | O40: 54 | R40: =O40*2.4 -> 129.6 | W40: 10
G42: TOTAL horas e importe | O42: =SUMIF(P24:Q40,"si",O24:O40) -> 0 | P42: h. | R42: =SUMIF(P24:Q40,"si",R24:S40)-SUMIF(T24:U40,"si",R24:S40)+SUMIF(T24:U40,"si",W24:X40) -> 0
B44: FORMA DE PAGO:
B45: El pago inicial se podrá realizar mediante transferencia bancaria o ingreso en efectivo a través de los cajeros automáticos disponibles en la oficinas del Banco Santander, a favor del siguiente número de cuenta:ES05 0049 3319 5928 1405 0252
B48: OBLIGATORIAMENTE DEBERÁ INDICARSE EN EL CONCEPTO EL NOMBRE DEL ALUMNO/A SEGUIDO DE FP-ONLINE
V50: =IF(AND(DATOS!A35=TRUE,AND($O$42<986,O42<1014)),DATOS!B35-H53,"") -> 
N51: 8% DTO. PARA MATRICULA CURSO COMPLETO | V51: =IF(DATOS!A35=TRUE,IF(OR($O$42>=986,O42>=1014),DATOS!B35-(DATOS!B35*8%)-H53,""),"") -> 
V52: =IF(AND(DATOS!A36=TRUE,AND($O$42<986,O42<1014)),DATOS!B36,"") -> 
C53: Total a pagar | H53: =SUMIF(DATOS!A31:A32,"verdadero",DATOS!B31:B32) -> 200 | N53: 4% DTO PARA MATRICULA CURSO COMPLETO | V53: =IF(DATOS!A36=TRUE,IF(OR($O$42>=986,O42>=1014),(R42-(R42*4%)-H53)/3,""),"") -> 
M54: SOLO PARA IMPORTES SUPERIORES A 1.000€
V55: =IF(AND(DATOS!A37=TRUE,AND($O$42<986,O42<1014),R42>=1000),DATOS!B37,"") -> 
N56: 3% dto para matricula curso completo | V56: =IF(DATOS!A37=TRUE,IF(OR($O$42>=986,O42>=1014),(R42-(R42*3%)-PAGO!H53)/9,""),"") -> 
B58: DATOS PARA DOMICILIACIÓN BANCARIA
B60: Entidad Bancaria
B62: Código IBAN | F62: Entidad | J62: sucursal | N62: dc | P62: código cuenta
B63: E | C63: S | D63: =IF(ISBLANK($V$63),"",MID($C$69,1,1)) ->  | E63: =IF(ISBLANK($V$63),"",MID($C$69,2,1)) ->  | N63: =IF($N$66=10,LEFT($N$66,1),IF($N$66=11,0,$N$66)) ->  | O63: =IF($O$66=10,LEFT($O$66,1),IF($O$66=11,0,$O$66)) -> 
N64: =SUM(F63*4,G63*8,H63*5,I63*10) -> 0 | O64: =SUM(P63*1,Q63*2,R63*4,S63*8,T63*5,U63*10,V63*9,W63*7,X63*3,Y63*6) -> 0
N65: =SUM(J63*9,K63*7,L63*3,M63*6) -> 0
E66: =CONCATENATE(B63,C63,D63,E63,E67) -> ES | N66: =IF(ISBLANK($H$63),"",11-MOD(SUM($N$64,$N$65),11)) ->  | O66: =IF(ISBLANK($U$63),"",11-MOD($O$64,11)) -> 
E67: =CONCATENATE(F63,G63,H63,I63,J63,K63,L63,M63,N63,O63,P63,Q63,R63,S63,T63,U63,V63,W63,X63,Y63) -> 
C69: =RIGHT(0&98-MOD(MOD(MOD(MOD(MID(E67,1,8),97)&MID(E67,9,8),97)&MID(E67&142800,17,8),97)&MID(E67&142800,25,2),97),2) ->  | E69: =MOD(MOD(MOD(MOD(MID(E67,1,8),97)&MID(E67,9,8),97)&MID(E67&142800,17,8),97)&MID(E67&142821,25,2),97) -> 
A74: CLAUSULAS IMPAGO:
Q75: Valladolid a
R76: Firma del Titular

Sheet DATOS
A1: NIVEL | B1: AÑO | C1: TITULO | F1: Celdas vinculadas
A2: C.F. GRADO MEDIO | B2: 1º | C2: Atención a Personas en Situación de Dependencia | F2: Nivel | G2: 1
A3: C.F. GRADO SUPERIOR | B3: 2º | C3: Gestión Administrativa | F3: FPB Y GM | G3: TRUE | H3: 1.12
C4: Farmacia y Parafarmacia | G4: FALSE | H4: 20
C5: Sistemas Microinformáticos y Redes | F5: G.S. Y BACHILLER
C6: Administración y Finanzas | F6: <28 | G6: TRUE | H6: 24.12
C7: Desarrollo Aplicaciones Multiplataforma | F7: >28 | G7: FALSE | H7: 23
C8: Educación Infantil | F8: 1trimestre | G8: TRUE | H8: 69
A9: DOCUMENTO | C9: Gestión de Ventas y Espacios Comerciales | F9: 2trimestre | G9: TRUE | H9: 69
A10: D.N.I. | C10: Guía, Información y Asistencia Turística | F10: 3trimestre | G10: FALSE | H10: 69
A11: N.I.E. | C11: Integración Social
C12: Laboratorio Clínico y Biomédico
A15: SI
A16: NO
A19: 2022/2023
A20: 2023/2024
A21: 2024/2025
A22: 2025/2026
A23: 2026/2027
A24: 2027/2028
A31: FALSE | B31: 1.12
A32: TRUE | B32: =200 -> 200
A35: FALSE | B35: =PAGO!R42 -> 0
A36: FALSE | B36: =(PAGO!R42-PAGO!H53)/3 -> -66.66666667
A37: FALSE | B37: =(PAGO!R42-PAGO!H53)/9 -> -22.22222222

Sheet PROVINCIAS
A1: Provincia
A3: Álava (Vitoria)
A4: Albacete
A5: Alicante
A6: Almería
A7: Asturias (Oviedo)
A8: Ávila
A9: Badajoz
A10: Baleares (Palma de Mallorca)
A11: Barcelona
A12: Burgos
A13: Cáceres
A14: Cádiz
A15: Cantabria (Santander)
A16: Castellón
A17: Ceuta
A18: Ciudad Real
A19: Córdoba
A20: Coruña
A21: Cuenca
A22: Gerona
A23: Granada
A24: Guadalajara
A25: Guipúzcoa (San Sebastián)
A26: Huelva
A27: Huesca
A28: Jaén
A29: La Rioja (Logroño)
A30: Las Palmas
A31: León
A32: Lérida
A33: Lugo
A34: Madrid
A35: Málaga
A36: Melilla
A37: Murcia
A38: Navarra (Pamplona)
A39: Orense
A40: Palencia
A41: Pontevedra
A42: Salamanca
A43: Santa Cruz de Tenerife
A44: Segovia
A45: Sevilla
A46: Soria
A47: Tarragona
A48: Teruel
A49: Toledo
A50: Valencia
A51: Valladolid
A52: Vizcaya (Bilbao)
A53: Zamora
A54: Zaragoza
